fUST/lending_fUST_20250511
["ID","MTS","AMOUNT","RATE_DAILY","PERIOD"]
[360700211,1746939034341,-234.157687,8.059e-05,2]
[360700212,1746939034351,-234.157687,8.059e-05,2]
[360700213,1746939034361,-234.157687,8.059e-05,2]
[360700214,1746939034371,-234.157687,8.059e-05,2]
[360700215,1746939034380,-234.157687,8.059e-05,2]
[360700216,1746939034390,-751.823098,8.059e-05,2]
[360700217,1746939034400,-751.823098,8.059e-05,2]
[360700218,1746939034409,-751.823098,8.059e-05,2]
[360700219,1746939034419,-151.0,8.061e-05,2]
[360700220,1746939034428,-151.0,8.061e-05,2]
[360700221,1746939034437,-151.0,8.061e-05,2]
[360700222,1746939034447,-152.299649,8.061e-05,2]
[360700223,1746939034457,-151.0,8.061e-05,2]
[360700224,1746939034467,-151.0,8.061e-05,2]
[360700225,1746939034476,-151.0,8.061e-05,2]
[360700226,1746939034485,-151.0,8.061e-05,2]
[360700227,1746939034495,-151.0,8.061e-05,2]
[360700228,1746939034504,-151.0,8.061e-05,2]
[360700229,1746939034513,-218.922104,8.061e-05,2]
[360700230,1746939034527,-170.413498,8.061e-05,2]
[360700231,1746939034536,-170.413498,8.061e-05,2]
[360700232,1746939034545,-170.413498,8.061e-05,2]
[360700233,1746939034555,-170.413498,8.061e-05,2]
[360700234,1746939034565,-151.0,8.061e-05,2]
[360700235,1746939034574,-151.0,8.061e-05,2]
[360700236,1746939034584,-151.0,8.061e-05,2]
[360700237,1746939034593,-151.0,8.061e-05,2]
[360700238,1746939034605,-151.0,8.061e-05,2]
[360700239,1746939034614,-151.0,8.061e-05,2]
[360700240,1746939034624,-151.0,8.061e-05,2]
[360700241,1746939034633,-151.0,8.061e-05,2]
[360700242,1746939034642,-151.0,8.061e-05,2]
[360700243,1746939034651,-151.0,8.061e-05,2]
[360700244,1746939034661,-151.0,8.061e-05,2]
[360700245,1746939034670,-151.0,8.061e-05,2]
[360700246,1746939034679,-151.0,8.061e-05,2]
[360700247,1746939034688,-151.0,8.061e-05,2]
[360700248,1746939034698,-151.0,8.061e-05,2]
[360700249,1746939034707,-475.780196,8.061e-05,2]
[360700250,1746939034717,-475.780196,8.061e-05,2]
[360700251,1746939034727,-475.780196,8.061e-05,2]
[360700252,1746939034736,-475.780196,8.061e-05,2]
[360700253,1746939034745,-306.646714,8.061e-05,2]
[360700254,1746939034754,-306.646714,8.061e-05,2]
[360700255,1746939034764,-306.646714,8.061e-05,2]
[360700256,1746939034773,-306.646714,8.061e-05,2]
[360700257,1746939034783,-151.0,8.061e-05,2]
[360700258,1746939034792,-151.0,8.061e-05,2]
[360700259,1746939034802,-190.198304,8.061e-05,2]
[360700260,1746939034811,-266.375555,8.061e-05,2]
[360700261,1746939034823,-266.375555,8.061e-05,2]
[360700262,1746939034832,-266.375555,8.061e-05,2]
[360700263,1746939034841,-266.375555,8.061e-05,2]
[360700264,1746939034851,-266.375555,8.061e-05,2]
[360700265,1746939034860,-266.375555,8.061e-05,2]
[360700266,1746939034870,-151.0,8.061e-05,2]
[360700267,1746939034879,-151.0,8.061e-05,2]
[360700268,1746939034889,-151.0,8.061e-05,2]
[360700269,1746939034900,-308.905421,8.061e-05,2]
[360700270,1746939034910,-308.905421,8.061e-05,2]
[360700271,1746939034919,-308.905421,8.061e-05,2]
[360700272,1746939034929,-308.905421,8.061e-05,2]
[360700273,1746939034938,-308.905421,8.061e-05,2]
[360700274,1746939034948,-308.905421,8.061e-05,2]
[360700275,1746939034958,-151.0,8.061e-05,2]
[360700276,1746939034968,-151.0,8.061e-05,2]
[360700277,1746939034977,-151.0,8.061e-05,2]
[360700278,1746939034986,-151.0,8.061e-05,2]
[360700279,1746939034995,-151.0,8.061e-05,2]
[360700280,1746939035005,-261.841817,8.061e-05,2]
[360700281,1746939035016,-269.875626,8.061e-05,2]
[360700282,1746939035025,-223.059596,8.061e-05,2]
[360700283,1746939035035,-223.059596,8.061e-05,2]
[360700284,1746939035046,-223.059596,8.061e-05,2]
[360700285,1746939035056,-223.059596,8.061e-05,2]
[360700286,1746939035066,-223.059596,8.061e-05,2]
[360700287,1746939035076,-223.059596,8.061e-05,2]
[360700288,1746939035086,-151.0,8.061e-05,2]
[360700289,1746939035095,-151.0,8.061e-05,2]
[360700290,1746939035104,-151.0,8.061e-05,2]
[360700291,1746939035114,-151.0,8.061e-05,2]
[360700292,1746939035123,-151.0,8.061e-05,2]
[360700293,1746939035132,-151.0,8.061e-05,2]
[360700294,1746939035142,-151.0,8.061e-05,2]
[360700295,1746939035151,-152.249384,8.061e-05,2]
[360700296,1746939035162,-2808.151605,8.061e-05,2]
[360700297,1746939035171,-2808.151605,8.061e-05,2]
[360700298,1746939035180,-2808.151605,8.061e-05,2]
[360700299,1746939035189,-2808.151605,8.061e-05,2]
[360700300,1746939035198,-2808.151605,8.061e-05,2]
[360700301,1746939035208,-2808.151605,8.061e-05,2]
[360700302,1746939035217,-151.0,8.061e-05,2]
[360700303,1746939035226,-151.0,8.061e-05,2]
[360700304,1746939035235,-151.0,8.061e-05,2]
[360700305,1746939035246,-151.0,8.061e-05,2]
[360700306,1746939035255,-151.0,8.061e-05,2]
[360700307,1746939035264,-151.0,8.061e-05,2]
[360700308,1746939035273,-151.0,8.061e-05,2]
[360700309,1746939035283,-392.627055,8.061e-05,2]
[360700310,1746939035292,-392.627055,8.061e-05,2]
[360700311,1746939035301,-392.627055,8.061e-05,2]
[360700312,1746939035311,-392.627055,8.061e-05,2]
[360700313,1746939035320,-392.627055,8.061e-05,2]
[360700314,1746939035330,-392.627055,8.061e-05,2]
[360700315,1746939035339,-392.627055,8.061e-05,2]
[360700316,1746939035348,-392.627058,8.061e-05,2]
[360700317,1746939035358,-234.157687,8.061e-05,2]
[360700318,1746939035367,-234.157687,8.061e-05,2]
[360700319,1746939035377,-234.157687,8.061e-05,2]
[360700320,1746939035387,-234.157687,8.061e-05,2]
[360700321,1746939035396,-234.157687,8.061e-05,2]
[360700322,1746939035406,-234.157687,8.061e-05,2]
[360700323,1746939035415,-234.157687,8.061e-05,2]
[360700324,1746939035426,-234.157695,8.061e-05,2]
[360700325,1746939035435,-3115.48687986,8.062e-05,2]
[360700326,1746939035445,-151.0,8.063e-05,2]
[360700327,1746939035454,-308.905421,8.063e-05,2]
[360700328,1746939035464,-308.905414,8.063e-05,2]
[360700329,1746939035473,-151.0,8.063e-05,2]
[360700330,1746939035483,-223.059596,8.063e-05,2]
[360700331,1746939035492,-223.059602,8.063e-05,2]
[360700332,1746939035501,-151.0,8.063e-05,2]
[360700333,1746939035510,-2808.151605,8.063e-05,2]
[360700334,1746939035521,-2808.15159871,8.063e-05,2]
[360700335,1746939035532,-151.0,8.063e-05,2]
[360700336,1746939035541,-3115.48687986,8.065e-05,2]
[360700337,1746939035551,-3115.48687986,8.067e-05,2]
[360700338,1746939035560,-1986.17025512,8.07e-05,2]
[360700364,1746939037673,-743.45877497,8.051e-05,2]
[360700366,1746939037683,-743.45877497,8.051e-05,2]
[360700368,1746939037692,-743.45877497,8.051e-05,2]
[360700370,1746939037702,-743.45877497,8.051e-05,2]
[360700372,1746939037712,-743.45877497,8.051e-05,2]
[360700374,1746939037722,-743.45877497,8.051e-05,2]
[360700376,1746939037731,-376.44570812,8.051e-05,2]
[360700379,1746939037749,-367.01306685,8.051e-05,2]
[360700381,1746939037758,-743.45877497,8.051e-05,2]
[360700383,1746939037767,-743.45877497,8.051e-05,2]
[360700384,1746939037776,-743.45877497,8.051e-05,2]
[360700385,1746939037785,-743.45877497,8.051e-05,2]
[360700386,1746939037794,-743.45877497,8.051e-05,2]
[360700387,1746939037803,-743.45877497,8.051e-05,2]
[360700389,1746939037812,-751.823098,8.055e-05,2]
[360700391,1746939037823,-751.823098,8.058e-05,2]
[360700392,1746939037832,-751.823098,8.058e-05,2]
[360700393,1746939037841,-751.823098,8.059e-05,2]
[360700394,1746939037851,-751.823098,8.059e-05,2]
[360700395,1746939037860,-751.823098,8.059e-05,2]
[360700397,1746939037869,-751.823098,8.061e-05,2]
[360700399,1746939037878,-751.823098,8.061e-05,2]
[360700401,1746939037887,-751.823098,8.061e-05,2]
[360700403,1746939037897,-751.823098,8.061e-05,2]
[360700405,1746939037907,-751.823098,8.061e-05,2]
[360700407,1746939037916,-751.823098,8.061e-05,2]
[360700409,1746939037925,-751.823098,8.063e-05,2]
[360700411,1746939037935,-751.823108,8.063e-05,2]
[360700413,1746939037944,-26022.50266142,8.07e-05,2]
[360700415,1746939037956,-8613.27288146,8.07e-05,2]
[360700569,1746939040045,-3803.51665658,8.059e-05,2]
[360700949,1746939044135,-3017.62299149,8.059e-05,2]
[360701052,1746939045964,-29902.13562804,8.059e-05,2]
[360701053,1746939045974,-159935.11750423,8.07e-05,2]
[360701054,1746939045989,-1337.380915,8.07e-05,2]
[360701055,1746939177842,500.0,7.994e-05,2]
[360701059,1746939520584,268.176,7.909e-05,2]
[360701060,1746939551947,24900.0,7.397e-05,2]
[360701061,1746939594825,914.1736,0.00022,120]
[360701065,1746939776377,500.0,7.983e-05,2]
[360701097,1746940231981,-321.50083613,8.046e-05,2]
[360701098,1746940231992,-151.0,8.053e-05,2]
[360701099,1746940232001,-151.0,8.055e-05,2]
[360701100,1746940232010,-151.0,8.058e-05,2]
[360701101,1746940232019,-151.0,8.058e-05,2]
[360701102,1746940232029,-151.0,8.058e-05,2]
[360701103,1746940232039,-156.156541,8.059e-05,2]
[360701104,1746940232048,-300.0,8.066e-05,2]
[360701105,1746940232058,-188.81307445,8.067e-05,2]
[360701106,1746940232067,-695.12752708,8.067e-05,2]
[360701107,1746940232077,-695.12752708,8.067e-05,2]
[360701108,1746940232087,-695.12752708,8.067e-05,2]
[360701109,1746940232097,-695.12752708,8.067e-05,2]
[360701110,1746940232107,-695.12752708,8.067e-05,2]
[360701111,1746940232117,-695.12752708,8.067e-05,2]
[360701112,1746940232129,-695.12752708,8.067e-05,2]
[360701113,1746940232138,-695.12752708,8.067e-05,2]
[360701114,1746940232147,-695.12752708,8.067e-05,2]
[360701115,1746940232157,-695.12752708,8.067e-05,2]
[360701116,1746940232166,-695.12752708,8.067e-05,2]
[360701117,1746940232178,-695.12752708,8.067e-05,2]
[360701118,1746940232189,-695.12752708,8.067e-05,2]
[360701119,1746940232198,-695.12752708,8.067e-05,2]
[360701120,1746940232208,-695.12752708,8.067e-05,2]
[360701121,1746940232217,-695.12752708,8.067e-05,2]
[360701122,1746940232226,-695.12752708,8.067e-05,2]
[360701123,1746940232236,-695.12752708,8.067e-05,2]
[360701124,1746940232247,-709.03007761,8.067e-05,2]
[360701125,1746940232256,-709.03007761,8.067e-05,2]
[360701126,1746940232265,-568.96910197,8.067e-05,2]
[360701882,1746940246189,-453.0,8.066e-05,2]
[360701893,1746940246298,-137.13427963,8.066e-05,2]
[360701895,1746940246308,-590.13427963,8.066e-05,2]
[360701897,1746940246318,-590.13427963,8.066e-05,2]
[360701899,1746940246327,-590.13427963,8.066e-05,2]
[360701901,1746940246336,-590.13427963,8.066e-05,2]
[360701903,1746940246345,-590.13427963,8.066e-05,2]
[360701905,1746940246355,-590.13427963,8.066e-05,2]
[360701907,1746940246366,-590.13427963,8.066e-05,2]
[360701909,1746940246375,-590.13427963,8.066e-05,2]
[360701911,1746940246385,-590.13427963,8.066e-05,2]
[360701913,1746940246395,-590.13427963,8.066e-05,2]
[360701915,1746940246404,-590.13427963,8.066e-05,2]
[360701917,1746940246414,-590.13427963,8.066e-05,2]
[360701919,1746940246423,-590.13427963,8.066e-05,2]
[360701921,1746940246432,-590.13427963,8.066e-05,2]
[360701923,1746940246441,-590.13427963,8.066e-05,2]
[360701925,1746940246450,-590.13427963,8.066e-05,2]
[360701927,1746940246460,-590.13427963,8.066e-05,2]
[360701929,1746940246469,-590.13427963,8.066e-05,2]
[360701931,1746940246478,-1734.11893476,8.07e-05,2]
[360702660,1746940376371,500.0,7.69e-05,2]
[360702820,1746940871875,3094.9870073,7.419e-05,2]
[360703035,1746940976556,500.0,7.69e-05,2]
[360703036,1746941010043,243.47181912,7.917e-05,2]
[360703188,1746941438170,-24.80255411,8.056e-05,2]
[360703190,1746941440389,-275.19744589,8.056e-05,2]
[360703191,1746941440399,-510.97551039,8.056e-05,2]
[360703192,1746941440408,-510.97551039,8.056e-05,2]
[360703193,1746941440418,-510.97551039,8.056e-05,2]
[360703194,1746941440428,-510.97551039,8.056e-05,2]
[360703195,1746941440437,-224.60051254,8.056e-05,2]
[360703514,1746941444689,-286.37499785,8.056e-05,2]
[360703515,1746941444699,-510.97551039,8.056e-05,2]
[360703516,1746941444708,-510.97551039,8.056e-05,2]
[360703517,1746941444718,-510.97551039,8.056e-05,2]
[360703518,1746941444726,-510.97551039,8.056e-05,2]
[360703519,1746941444736,-510.97551039,8.056e-05,2]
[360703520,1746941444745,-510.97551039,8.056e-05,2]
[360703521,1746941444754,-510.97551039,8.056e-05,2]
[360703522,1746941444763,-510.97551039,8.056e-05,2]
[360703523,1746941444772,-510.97551039,8.056e-05,2]
[360703524,1746941444781,-510.97551039,8.056e-05,2]
[360703525,1746941444790,-510.97551039,8.056e-05,2]
[360703526,1746941444799,-510.97551039,8.056e-05,2]
[360703527,1746941444809,-510.97551039,8.056e-05,2]
[360703528,1746941444818,-2171.62,8.057e-05,2]
[360703529,1746941444827,-196431.5562426,8.07e-05,2]
[360703664,1746941446149,-436.73,8.07e-05,2]
[360703676,1746941446265,-2346.44622876,8.07e-05,2]
[360703678,1746941446276,-7793.69680333,8.07e-05,2]
[360705842,1746941576212,500.0,7.684e-05,2]
[360705847,1746941843870,164186.06996658,8e-05,2]
[360705848,1746942081028,251.93848285,7.967e-05,2]
[360705850,1746942176510,490.52844948,7.682e-05,2]
[360705851,1746942263651,50122.27855608,8e-05,2]
[360705852,1746942308373,1288.0,0.00022,120]
[360705890,1746942632381,-300.0,8.046e-05,2]
[360705891,1746942632391,-25249.30733951,8.07e-05,2]
[360705892,1746942632437,-55350.00000017,8.07e-05,2]
[360705900,1746942638334,-379.50160881,8.046e-05,2]
[360705901,1746942638346,-120.49839119,8.046e-05,2]
[360705902,1746942638355,-500.0,8.046e-05,2]
[360705903,1746942638365,-500.0,8.046e-05,2]
[360705904,1746942638375,-500.0,8.046e-05,2]
[360705905,1746942638385,-500.0,8.046e-05,2]
[360705906,1746942638394,-500.0,8.046e-05,2]
[360705907,1746942638403,-131.42662556,8.046e-05,2]
[360706231,1746942643398,-368.57337444,8.046e-05,2]
[360706233,1746942643408,-500.0,8.046e-05,2]
[360706235,1746942643418,-500.0,8.046e-05,2]
[360706237,1746942643428,-500.0,8.046e-05,2]
[360706239,1746942643437,-74.61777706,8.046e-05,2]
[360706526,1746942646356,-425.38222294,8.046e-05,2]
[360706528,1746942646366,-400.3625768,8.069e-05,2]
[360706530,1746942646376,-400.0,8.069e-05,2]
[360706532,1746942646386,-400.0,8.069e-05,2]
[360706534,1746942646399,-190952.39416786,8.07e-05,2]
[360706566,1746942646698,-400.0,8.069e-05,2]
[360706568,1746942646708,-4721.00000006,8.07e-05,2]
[360707325,1746943428007,1000.0,7.964e-05,2]
[360707327,1746943495616,1000.0,7.964e-05,2]
[360707330,1746943590052,1000.0,7.962e-05,2]
[360707336,1746943663431,328.53680944,7.962e-05,2]
[360707389,1746943832425,-300.0,8.059e-05,2]
[360707391,1746943832434,-79.42100616,8.065e-05,2]
[360707396,1746943832541,-320.57899384,8.065e-05,2]
[360707398,1746943832552,-401.81240372,8.065e-05,2]
[360707400,1746943832562,-420.9873878,8.065e-05,2]
[360707401,1746943832571,-432.46857763,8.065e-05,2]
[360707402,1746943832581,-208.90664712,8.065e-05,2]
[360707403,1746943832590,-400.0,8.065e-05,2]
[360707404,1746943832599,-400.0,8.065e-05,2]
[360707406,1746943832609,-400.0,8.065e-05,2]
[360707408,1746943832618,-400.0,8.065e-05,2]
[360707410,1746943832627,-400.0,8.065e-05,2]
[360707412,1746943832637,-400.0,8.065e-05,2]
[360707414,1746943832646,-400.0,8.065e-05,2]
[360707416,1746943832656,-508.98572313,8.065e-05,2]
[360707418,1746943832665,-400.0,8.065e-05,2]
[360707420,1746943832674,-400.0,8.065e-05,2]
[360707422,1746943832683,-406.44392807,8.065e-05,2]
[360707423,1746943832693,-400.0,8.065e-05,2]
[360707424,1746943832702,-191.71582171,8.065e-05,2]
[360707425,1746943832711,-400.0,8.065e-05,2]
[360707426,1746943832725,-400.0,8.065e-05,2]
[360707427,1746943832734,-400.0,8.065e-05,2]
[360707428,1746943832743,-400.0,8.065e-05,2]
[360707429,1746943832752,-400.0,8.065e-05,2]
[360707430,1746943832761,-418.82967587,8.065e-05,2]
[360707431,1746943832771,-400.0,8.065e-05,2]
[360707432,1746943832780,-400.0,8.065e-05,2]
[360707433,1746943832789,-400.0,8.065e-05,2]
[360707434,1746943832799,-400.0,8.065e-05,2]
[360707435,1746943832808,-400.0,8.065e-05,2]
[360707436,1746943832817,-400.0,8.065e-05,2]
[360707437,1746943832826,-228.71381438,8.065e-05,2]
[360707438,1746943832835,-400.0,8.065e-05,2]
[360707439,1746943832844,-155.23524351,8.065e-05,2]
[360707440,1746943832853,-151.13182428,8.065e-05,2]
[360707441,1746943832863,-407.40154783,8.066e-05,2]
[360707442,1746943832872,-400.0,8.066e-05,2]
[360707443,1746943832881,-517.47210025,8.066e-05,2]
[360707444,1746943832890,-353.98404637,8.066e-05,2]
[360707445,1746943832899,-400.0,8.066e-05,2]
[360707446,1746943832908,-354.08001014,8.066e-05,2]
[360707447,1746943832918,-400.0,8.066e-05,2]
[360707448,1746943832927,-400.0,8.066e-05,2]
[360707449,1746943832936,-400.0,8.066e-05,2]
[360707450,1746943832945,-400.0,8.066e-05,2]
[360707451,1746943832954,-400.0,8.066e-05,2]
[360707452,1746943832964,-400.0,8.066e-05,2]
[360707453,1746943832976,-400.0,8.066e-05,2]
[360707454,1746943832985,-400.0,8.066e-05,2]
[360707455,1746943832995,-400.0,8.066e-05,2]
[360707456,1746943833004,-400.0,8.066e-05,2]
[360707457,1746943833013,-400.0,8.066e-05,2]
[360707458,1746943833023,-400.0,8.066e-05,2]
[360707459,1746943833033,-421.55964429,8.066e-05,2]
[360707460,1746943833043,-329.37085697,8.066e-05,2]
[360707461,1746943833055,-70.62914303,8.066e-05,2]
[360707462,1746943833068,-400.0,8.066e-05,2]
[360707463,1746943833077,-400.0,8.066e-05,2]
[360707464,1746943833087,-429.35706094,8.066e-05,2]
[360707465,1746943833096,-400.0,8.066e-05,2]
[360707466,1746943833106,-400.0,8.066e-05,2]
[360707467,1746943833116,-400.0,8.066e-05,2]
[360707468,1746943833125,-400.0,8.066e-05,2]
[360707469,1746943833135,-400.0,8.066e-05,2]
[360707470,1746943833146,-400.0,8.066e-05,2]
[360707471,1746943833156,-400.0,8.066e-05,2]
[360707472,1746943833165,-400.0,8.066e-05,2]
[360707473,1746943833175,-400.99264245,8.066e-05,2]
[360707474,1746943833184,-400.0,8.066e-05,2]
[360707475,1746943833194,-400.0,8.066e-05,2]
[360707476,1746943833203,-405.16009707,8.066e-05,2]
[360707477,1746943833213,-400.0,8.066e-05,2]
[360707478,1746943833226,-400.0,8.066e-05,2]
[360707479,1746943833235,-400.0,8.066e-05,2]
[360707480,1746943833245,-400.0,8.066e-05,2]
[360707481,1746943833254,-400.0,8.066e-05,2]
[360707482,1746943833264,-400.0,8.066e-05,2]
[360707483,1746943833274,-298.67363657,8.066e-05,2]
[360707484,1746943833283,-400.0,8.066e-05,2]
[360707485,1746943833293,-400.0,8.066e-05,2]
[360707486,1746943833302,-417.074617,8.066e-05,2]
[360707487,1746943833313,-400.0,8.066e-05,2]
[360707488,1746943833322,-400.0,8.066e-05,2]
[360707489,1746943833332,-376.08559098,8.066e-05,2]
[360707490,1746943833341,-400.0,8.066e-05,2]
[360707491,1746943833351,-411.09151785,8.066e-05,2]
[360707492,1746943833360,-400.0,8.066e-05,2]
[360707493,1746943833369,-400.0,8.066e-05,2]
[360707494,1746943833379,-400.0,8.066e-05,2]
[360707495,1746943833389,-413.62869597,8.066e-05,2]
[360707496,1746943833399,-400.0,8.066e-05,2]
[360707497,1746943833409,-400.0,8.066e-05,2]
[360707498,1746943833419,-416.29795711,8.066e-05,2]
[360707499,1746943833428,-400.0,8.067e-05,2]
[360707500,1746943833438,-400.0,8.067e-05,2]
[360707501,1746943833448,-405.97965837,8.067e-05,2]
[360707502,1746943833458,-238.64824269,8.067e-05,2]
[360707503,1746943833471,-400.0,8.067e-05,2]
[360707504,1746943833482,-199.38113997,8.067e-05,2]
[360707531,1746943840877,-338.98813679,8.059e-05,2]
[360707594,1746943845818,-161.01186321,8.059e-05,2]
[360707596,1746943845827,-304.76211777,8.059e-05,2]
[360707870,1746944211935,298.129,8e-05,2]
[360707911,1746945032760,-300.0,8.053e-05,2]
[360707913,1746945032771,-500.0,8.054e-05,2]
[360707915,1746945032781,-500.0,8.054e-05,2]
[360707916,1746945032791,-500.0,8.054e-05,2]
[360707917,1746945032801,-500.0,8.054e-05,2]
[360707918,1746945032812,-500.0,8.054e-05,2]
[360707919,1746945032822,-500.0,8.054e-05,2]
[360707920,1746945032831,-555.87054186,8.054e-05,2]
[360707921,1746945032840,-500.0,8.054e-05,2]
[360707922,1746945032850,-500.0,8.054e-05,2]
[360707923,1746945032859,-500.0,8.054e-05,2]
[360707924,1746945032868,-500.0,8.054e-05,2]
[360707925,1746945032878,-539.1093793,8.054e-05,2]
[360707926,1746945032887,-500.0,8.054e-05,2]
[360707927,1746945032896,-500.0,8.054e-05,2]
[360707928,1746945032907,-500.0,8.054e-05,2]
[360707929,1746945032916,-500.0,8.054e-05,2]
[360707930,1746945032927,-500.0,8.054e-05,2]
[360707931,1746945032939,-500.0,8.054e-05,2]
[360707932,1746945032949,-500.0,8.054e-05,2]
[360707933,1746945032959,-400.0,8.054e-05,2]
[360707934,1746945032968,-160.19201137,8.061e-05,2]
[360707935,1746945032978,-400.0,8.061e-05,2]
[360707936,1746945032989,-400.0,8.061e-05,2]
[360707937,1746945032998,-400.0,8.061e-05,2]
[360707938,1746945033007,-400.0,8.061e-05,2]
[360707939,1746945033016,-400.0,8.061e-05,2]
[360707940,1746945033025,-404.92133598,8.062e-05,2]
[360707941,1746945033034,-400.0,8.062e-05,2]
[360707942,1746945033043,-400.0,8.062e-05,2]
[360707943,1746945033052,-400.0,8.062e-05,2]
[360707944,1746945033063,-400.0,8.062e-05,2]
[360707945,1746945033072,-400.0,8.062e-05,2]
[360707946,1746945033081,-400.0,8.062e-05,2]
[360707947,1746945033090,-315.90673149,8.062e-05,2]
[360707948,1746945033102,-84.09326851,8.062e-05,2]
[360707949,1746945033112,-400.0,8.062e-05,2]
[360707950,1746945033121,-400.0,8.062e-05,2]
[360707951,1746945033130,-413.707919,8.062e-05,2]
[360707952,1746945033140,-441.02306906,8.062e-05,2]
[360707953,1746945033149,-400.0,8.062e-05,2]
[360707954,1746945033158,-400.0,8.062e-05,2]
[360707955,1746945033168,-589.39,8.062e-05,2]
[360707956,1746945033177,-416.19286324,8.062e-05,2]
[360707957,1746945033186,-400.0,8.062e-05,2]
[360707958,1746945033195,-400.0,8.062e-05,2]
[360707959,1746945033204,-517.42,8.062e-05,2]
[360707960,1746945033213,-405.05735501,8.062e-05,2]
[360707961,1746945033222,-400.0,8.062e-05,2]
[360707962,1746945033233,-400.0,8.062e-05,2]
[360707963,1746945033242,-400.0,8.062e-05,2]
[360707964,1746945033251,-609.59,8.062e-05,2]
[360707965,1746945033260,-1119.19,8.062e-05,2]
[360707966,1746945033270,-400.0,8.062e-05,2]
[360707967,1746945033279,-400.0,8.062e-05,2]
[360707968,1746945033288,-400.0,8.062e-05,2]
[360707969,1746945033297,-400.0,8.062e-05,2]
[360707970,1746945033306,-404.0868192,8.062e-05,2]
[360707971,1746945033315,-400.0,8.062e-05,2]
[360707972,1746945033325,-400.0,8.062e-05,2]
[360707973,1746945033334,-400.0,8.062e-05,2]
[360707974,1746945033343,-498.54,8.062e-05,2]
[360707975,1746945033353,-400.0,8.062e-05,2]
[360707976,1746945033362,-400.0,8.062e-05,2]
[360707977,1746945033371,-400.0,8.062e-05,2]
[360707978,1746945033381,-400.0,8.062e-05,2]
[360707979,1746945033390,-436.07732239,8.062e-05,2]
[360707980,1746945033400,-400.0,8.062e-05,2]
[360707981,1746945033409,-47.91150359,8.062e-05,2]
[360708008,1746945038693,-201.00557268,8.061e-05,2]
[360708009,1746945038703,-232.94634292,8.061e-05,2]
[360708010,1746945038713,-352.08849641,8.062e-05,2]
[360708011,1746945038724,-78.19799345,8.062e-05,2]
[360708224,1746945046363,-400.0,8.061e-05,2]
[360708226,1746945046374,-400.0,8.061e-05,2]
[360708228,1746945046383,-338.89359604,8.061e-05,2]
[360708229,1746945046394,-321.80200655,8.062e-05,2]
[360708231,1746945046404,-610.45,8.062e-05,2]
[360708232,1746945046413,-939.86,8.062e-05,2]
[360708233,1746945046424,-605.98,8.062e-05,2]
[360708235,1746945046433,-736.04,8.062e-05,2]
[360708237,1746945046443,-400.0,8.062e-05,2]
[360708238,1746945046452,-1862.99,8.062e-05,2]
[360708240,1746945046462,-400.0,8.062e-05,2]
[360708241,1746945046471,-400.0,8.062e-05,2]
[360708242,1746945046480,-400.0,8.062e-05,2]
[360708243,1746945046490,-400.0,8.062e-05,2]
[360708244,1746945046502,-400.0,8.062e-05,2]
[360708245,1746945046512,-400.0,8.062e-05,2]
[360708246,1746945046521,-440.29998131,8.062e-05,2]
[360708247,1746945046530,-400.0,8.062e-05,2]
[360708248,1746945046540,-400.0,8.062e-05,2]
[360708249,1746945046550,-1761.55,8.062e-05,2]
[360708250,1746945046559,-400.0,8.062e-05,2]
[360708251,1746945046569,-400.0,8.062e-05,2]
[360708252,1746945046579,-816.9,8.062e-05,2]
[360708253,1746945046588,-470.18,8.062e-05,2]
[360708254,1746945046598,-542.34,8.062e-05,2]
[360708255,1746945046611,-644.06,8.062e-05,2]
[360708256,1746945046621,-400.0,8.062e-05,2]
[360708257,1746945046631,-400.0,8.062e-05,2]
[360708258,1746945046641,-239.91358238,8.063e-05,2]
[360708259,1746945046651,-425.26825794,8.063e-05,2]
[360708260,1746945046660,-400.0,8.063e-05,2]
[360708261,1746945046670,-400.0,8.063e-05,2]
[360708263,1746945046680,-498.13889427,8.063e-05,2]
[360708265,1746945046690,-417.35198083,8.063e-05,2]
[360708267,1746945046699,-470.6838459,8.063e-05,2]
[360708268,1746945046709,-403.0235448,8.063e-05,2]
[360708269,1746945046719,-424.94019167,8.063e-05,2]
[360708270,1746945046729,-389.97163046,8.063e-05,2]
[360708271,1746945046739,-418.91949124,8.063e-05,2]
[360708272,1746945046748,-450.36624731,8.063e-05,2]
[360708273,1746945046758,-404.94308938,8.063e-05,2]